bitfinex-derivatives/quotes_ETHF0:USTF0_20250817
["timestamp","ask_amount","ask_price","bid_price","bid_amount"]
[1755447521100,3.6478,4543.1,4542.9,1.33531]
[1755447521292,3.6478,4543.1,4543.0,0.8953]
[1755447521293,3.2078,4543.1,4543.0,0.8953]
[1755447522199,0.43996,4543.5,4543.3,0.43997]
[1755447522396,3.2078,4543.7,4543.5,0.43995]
[1755447522602,3.2078,4543.7,4543.6,0.8953]
[1755447523392,3.2078,4543.7,4543.6,0.508]
[1755447523594,3.2078,4543.7,4543.6,0.2559]
[1755447523798,0.43995,4543.6,4543.1,0.2521]
[1755447524005,0.43998,4543.2,4543.1,0.508]
[1755447524606,0.43998,4543.2,4543.1,0.8953]
[1755447528608,0.43998,4543.2,4543.1,1.33529]
[1755447529208,0.43998,4543.2,4543.1,0.8953]
[1755447529908,0.43998,4543.3,4543.2,1.32918]
[1755447530109,0.44,4543.1,4542.9,0.8892]
[1755447530310,0.43999,4543.2,4543.1,0.8892]
[1755447531002,0.43999,4543.2,4543.1,0.5001]
[1755447532204,0.43999,4543.2,4543.1,0.8892]
[1755447532401,0.43997,4543.4,4543.2,0.2452]
[1755447532602,0.43997,4543.4,4543.3,0.8892]
[1755447534310,0.43997,4543.4,4543.2,0.43997]
[1755447534505,0.43997,4543.4,4543.3,0.8892]
[1755447536309,0.43997,4543.4,4543.3,0.5001]
[1755447536502,0.43997,4543.4,4543.3,0.2452]
[1755447537310,0.44,4543.0,4542.9,0.5001]
[1755447537707,0.44,4543.0,4542.9,0.2452]
[1755447537907,3.6478,4543.0,4542.9,0.2452]
[1755447538308,0.44004,4542.6,4542.5,0.2452]
[1755447539807,1.10004,4542.9,4542.1,22.0739]
[1755447539808,0.44008,4542.2,4542.1,22.0739]
[1755447540002,3.64788,4542.2,4542.1,0.2452]
[1755447540405,3.64788,4542.2,4542.1,0.5001]
[1755447541205,3.64788,4542.2,4542.1,0.8892]
[1755447541407,0.44014,4541.7,4541.6,0.8892]
[1755447542614,3.2078,4542.2,4541.7,0.8892]
[1755447542809,3.2078,4542.2,4541.5,21.792]
[1755447542810,3.2078,4542.2,4541.8,0.8892]
[1755447543009,3.2078,4542.2,4541.9,0.8892]
[1755447543210,0.44009,4542.1,4542.0,0.8892]
[1755447543503,0.44009,4542.1,4542.0,0.5001]
[1755447543914,0.44009,4542.1,4542.0,0.8892]
[1755447547210,0.44009,4542.1,4542.0,0.2452]
[1755447547904,3.2078,4542.2,4541.6,22.5962]
[1755447547905,0.44013,4541.7,4541.6,22.5962]
[1755447549509,3.2078,4542.2,4541.6,22.14713]
[1755447549510,0.44012,4541.8,4541.6,22.14713]
[1755447549708,0.44009,4542.1,4541.8,0.8892]
[1755447550013,0.44013,4541.7,4541.6,0.44013]
[1755447550214,0.44013,4541.7,4541.6,22.10013]
[1755447550513,0.44012,4541.8,4541.6,22.10013]
[1755447550813,0.44012,4541.8,4541.7,0.8892]
[1755447551210,3.2078,4542.2,4542.1,0.5001]
[1755447551507,0.44005,4542.6,4542.3,0.2549]
[1755447551707,0.44005,4542.6,4542.5,0.8892]
[1755447552013,0.44004,4542.7,4542.6,1.32924]
[1755447552211,3.2078,4543.2,4543.0,0.43999]
[1755447552508,3.2078,4543.2,4543.1,0.8892]
[1755447553824,3.2078,4543.2,4543.1,1.32919]
[1755447554117,3.2078,4543.8,4543.7,1.32913]
[1755447554510,3.2078,4543.8,4543.7,0.8892]
[1755447555912,0.43984,4544.8,4544.0,0.43991]
[1755447556104,0.43985,4544.6,4544.2,1.08389]
[1755447556306,0.43987,4544.4,4544.3,22.5262]
[1755447556512,0.53997,4544.4,4544.3,0.5001]
[1755447558215,0.53997,4544.4,4544.3,0.2452]
[1755447559510,0.43987,4544.4,4544.3,0.856]
[1755447560215,0.53917,4544.4,4544.3,0.2452]
[1755447561012,0.43993,4543.8,4543.7,0.6045]
[1755447561314,0.43993,4543.8,4543.5,3.2078]
[1755447561315,0.43994,4543.6,4543.5,3.2078]
[1755447561611,0.43994,4543.6,4543.5,3.4491]
[1755447561612,0.53924,4543.6,4543.5,3.4491]
[1755447561820,0.53928,4543.2,4543.1,0.58795022]
[1755447562317,0.43998,4543.2,4543.1,0.95115022]
[1755447562515,0.43998,4543.2,4543.1,0.58795022]
[1755447562707,0.53928,4543.2,4543.1,0.58795022]
[1755447562910,0.53928,4543.2,4543.1,0.95115022]
[1755447563510,0.43998,4543.3,4543.2,0.8521]
[1755447563811,0.43991,4544.1,4543.4,1.12192]
[1755447564010,0.43991,4544.1,4544.0,0.8521]
[1755447564211,0.43989,4544.2,4544.0,22.4371]
[1755447564412,0.43989,4544.2,4544.1,0.8521]
[1755447564614,0.0993,4545.1,4544.3,0.6045]
[1755447564816,1.0995,4545.2,4544.5,0.43985]
[1755447565114,0.43983,4544.8,4544.7,0.4889]
[1755447565517,0.43983,4544.8,4544.7,0.8521]
[1755447566015,0.43983,4544.8,4544.6,21.577]
[1755447566314,0.43979,4545.2,4545.0,0.43981]
[1755447566720,0.43979,4545.2,4545.1,0.8521]
[1755447567213,0.0993,4545.8,4545.1,0.8521]
[1755447567412,0.0993,4545.8,4544.6,21.577]
[1755447567413,0.0993,4545.8,4545.2,22.4101]
[1755447570116,0.0993,4545.8,4545.2,21.9212]
[1755447570318,0.0993,4545.9,4545.3,0.2413]
[1755447573020,0.0993,4545.9,4545.4,0.2476]
[1755447573326,0.2582,4545.8,4545.7,0.6458]
[1755447574319,3.2078,4546.0,4545.7,1.0617]
[1755447574525,3.3071,4546.0,4545.9,1.4249]
[1755447575221,3.2078,4546.0,4545.9,1.4249]
[1755447576424,3.3071,4546.0,4545.9,1.4249]
[1755447576925,3.466,4546.0,4545.9,1.4249]
[1755447577517,0.2582,4546.0,4545.9,1.4249]
[1755447578918,0.2582,4546.0,4545.9,0.8605]
[1755447579123,0.0993,4545.9,4545.4,0.43977]
[1755447579324,0.1589,4545.9,4545.8,0.5728]
[1755447579529,0.2582,4545.9,4545.8,0.936]
[1755447579730,0.2582,4545.9,4545.8,1.4249]
[1755447580635,0.0993,4545.8,4545.0,0.7614]
[1755447580834,0.2582,4545.1,4545.0,0.8141]
[1755447581129,0.0993,4545.0,4544.5,0.3982]
[1755447581335,0.0993,4544.9,4544.5,1.4249]
[1755447581633,0.0993,4544.9,4544.8,1.0617]
[1755447581634,0.2582,4544.9,4544.8,1.0617]
[1755447582128,0.2582,4544.9,4544.8,0.9018]
[1755447582725,0.2582,4544.9,4544.8,0.2413]
[1755447584632,3.2078,4545.5,4544.9,0.2413]
[1755447584933,0.2582,4545.5,4545.4,1.4249]
[1755447585135,3.466,4545.5,4545.4,1.0617]
[1755447587432,3.466,4545.5,4544.7,0.2413]
[1755447587628,0.1596,4544.8,4544.7,0.5581]
[1755447587933,0.2594,4544.8,4544.7,1.4332]
[1755447588329,0.2594,4544.8,4544.7,1.0688]
[1755447589037,0.2594,4544.8,4544.7,1.4332]
[1755447589835,0.2594,4544.8,4544.7,1.0688]
[1755447590133,0.2594,4544.8,4544.7,0.2413]
[1755447590532,0.2594,4544.8,4544.7,0.499]
[1755447590728,0.2594,4544.8,4544.4,3.2078]
[1755447590729,0.0998,4544.7,4544.4,3.2078]
[1755447590933,0.2594,4544.1,4544.0,1.0601]
[1755447591134,0.2594,4544.1,4544.0,1.4245]
[1755447591331,0.2594,4544.1,4544.0,1.0601]
[1755447591531,0.2594,4544.1,4544.0,0.8071]
[1755447591832,0.2594,4544.1,4544.0,1.4245]
[1755447593240,3.2078,4544.5,4544.3,0.3152]
[1755447593429,3.2078,4545.0,4544.4,0.2342]
[1755447593633,0.2594,4544.9,4544.8,0.1577]
[1755447593834,0.2594,4544.9,4544.8,0.8071]
[1755447594032,0.2594,4544.9,4544.8,0.2342]
[1755447594236,0.1596,4544.4,4544.3,0.4919]
[1755447594536,0.2594,4544.4,4544.3,1.4245]
[1755447594936,0.0998,4544.4,4544.3,1.4245]
[1755447595638,0.2594,4544.4,4544.3,1.4245]
[1755447596032,0.0998,4544.4,4544.3,1.4245]
[1755447596334,0.2594,4544.4,4544.3,1.4245]
[1755447596836,0.2594,4544.4,4544.3,0.3919]
[1755447597038,0.2594,4544.4,4544.3,1.4245]
[1755447597735,3.2078,4545.0,4544.3,1.1903]
[1755447597934,0.0998,4544.9,4543.8,0.8563]
[1755447598240,0.0998,4544.9,4543.9,0.4919]
[1755447598436,0.0998,4544.9,4544.0,0.3644]
[1755447598637,0.0998,4544.9,4544.1,0.4919]
[1755447599140,0.0998,4544.9,4544.1,0.2577]
[1755447599440,0.0998,4544.9,4544.2,0.2342]
[1755447600837,0.0998,4544.9,4544.4,0.2342]
[1755447601037,0.1596,4544.6,4544.5,1.1903]
[1755447601241,0.1596,4544.6,4544.5,1.0601]
[1755447601242,0.2594,4544.6,4544.5,1.0601]
[1755447601541,0.1596,4544.1,4543.5,0.2342]
[1755447601735,0.2594,4543.6,4543.5,0.5682]
[1755447602040,0.2594,4543.2,4543.1,0.66725022]
[1755447602235,3.2078,4544.0,4543.1,1.52355022]
[1755447602431,3.2078,4544.0,4543.2,0.4919]
[1755447602742,0.1596,4543.4,4543.3,0.8024]
[1755447603037,0.2594,4543.4,4543.3,0.8259]
[1755447603346,0.2594,4543.2,4543.1,0.09905022]
[1755447603538,0.2594,4543.2,4543.1,0.33325022]
[1755447603739,0.2594,4543.2,4543.1,1.52355022]
[1755447604739,0.0998,4543.4,4543.3,0.5682]
[1755447604940,3.2078,4543.5,4543.3,1.4245]
[1755447605140,3.2078,4544.1,4543.4,0.8563]
[1755447605439,0.0998,4544.0,4543.5,0.2342]
[1755447605641,3.2078,4543.6,4543.2,0.2342]
[1755447605839,0.2594,4543.2,4543.1,1.28935022]
[1755447606539,0.2594,4543.2,4543.1,1.52355022]
[1755447606740,3.2078,4543.6,4543.1,1.52355022]
[1755447606940,3.3076,4543.6,4543.5,0.5682]
[1755447607141,3.3076,4543.6,4543.5,1.4245]
[1755447607337,0.0998,4544.0,4543.6,0.4919]
[1755447607544,3.2078,4544.1,4544.0,1.4245]
[1755447607947,3.4672,4544.1,4544.0,1.4245]
[1755447609044,0.2594,4544.1,4544.0,1.4245]
[1755447609240,0.0998,4544.5,4544.0,0.9326]
[1755447609446,0.2594,4544.5,4544.4,1.4245]
[1755447609634,3.2078,4544.6,4544.4,1.4245]
[1755447609834,3.2078,4544.6,4544.5,1.4245]
[1755447610645,3.3076,4544.6,4544.5,1.4245]
[1755447612136,3.2078,4544.6,4544.5,1.4245]
[1755447612642,0.0992,4545.0,4544.9,0.5682]
[1755447612847,0.0992,4545.0,4544.9,1.4245]
[1755447613040,0.0992,4545.2,4545.1,0.1575]
[1755447613235,3.2078,4545.3,4545.2,0.5682]
[1755447613440,3.307,4546.0,4545.2,1.4245]
[1755447613641,3.4658,4546.0,4545.9,1.4245]
[1755447613842,3.2078,4546.0,4545.9,1.4245]
[1755447614036,3.2078,4546.0,4545.9,1.0601]
[1755447614253,3.307,4546.0,4544.9,0.8563]
[1755447614540,0.0992,4545.9,4545.0,0.8563]
[1755447614745,0.0992,4545.9,4545.1,0.4919]
[1755447614943,0.0992,4545.9,4545.1,0.2577]
[1755447615145,0.0992,4545.9,4545.2,0.2342]
[1755447615748,0.0992,4545.9,4545.3,0.6221]
[1755447615943,0.0992,4545.9,4545.4,0.2342]
[1755447616139,0.1588,4545.5,4545.4,0.8024]
[1755447616345,3.4658,4545.5,4545.4,1.0601]
[1755447616548,0.0992,4545.4,4544.6,0.2342]
[1755447616750,0.0992,4544.9,4544.7,0.7798]
[1755447617048,0.0992,4544.9,4544.0,3.2078]
[1755447617049,0.258,4544.9,4544.8,1.4245]
[1755447617445,0.258,4544.9,4544.8,0.2342]
[1755447617847,0.258,4544.9,4544.8,0.4917]
[1755447618046,0.258,4544.9,4544.8,0.6494]
[1755447618748,0.258,4544.9,4544.8,1.4053]
[1755447618951,0.0992,4544.9,4544.8,1.4053]
[1755447619146,0.2581,4544.9,4544.8,1.4053]
[1755447620447,0.2581,4544.9,4544.8,0.2342]
[1755447623050,0.2581,4544.9,4544.8,1.4161]
[1755447624156,3.2078,4545.0,4544.9,0.3616]
[1755447624457,3.2078,4545.0,4544.9,1.4291]
[1755447626257,3.3071,4545.5,4544.9,1.4291]
[1755447626455,3.3071,4545.5,4544.2,0.43988]
[1755447626456,3.466,4545.5,4545.4,0.5628]
[1755447626651,3.2078,4545.5,4545.4,1.4291]
[1755447626847,3.3071,4545.5,4544.1,0.2575]
[1755447627155,3.3071,4545.5,4543.9,3.2298]
[1755447627156,3.466,4545.5,4545.4,1.4291]
[1755447627353,0.1589,4545.2,4545.1,1.0675]
[1755447627660,3.2078,4545.5,4545.4,1.0675]
[1755447628050,3.2078,4545.5,4545.4,1.4291]
[1755447628947,3.3071,4545.5,4545.4,1.4291]
[1755447629657,3.2078,4545.5,4545.4,1.4291]
[1755447631057,3.3071,4545.5,4545.4,1.4291]
[1755447631256,3.466,4545.5,4545.4,1.4291]
[1755447631562,3.466,4545.5,4545.4,0.2472]
[1755447632261,0.2582,4544.8,4544.7,0.2472]
[1755447632458,3.466,4544.8,4544.7,0.2472]
[1755447632761,3.466,4544.8,4544.7,0.6732]
[1755447633752,3.466,4544.8,4544.7,0.2472]
[1755447633949,0.1589,4544.5,4544.4,0.2472]
[1755447634148,0.1589,4544.5,4543.1,31.79105022]
[1755447634149,0.1213,4544.4,4543.3,0.2472]
[1755447634361,0.1589,4543.4,4543.3,0.9244]
[1755447634663,0.2582,4543.4,4543.3,0.9244]
[1755447635052,3.3667,4543.9,4543.8,0.5628]
[1755447635361,3.2078,4543.9,4543.8,1.4291]
[1755447635859,3.466,4543.9,4543.8,1.4291]
[1755447636364,3.2078,4543.9,4543.8,1.4291]
[1755447636662,0.0993,4544.6,4544.0,0.5047]
[1755447636977,0.0993,4544.6,4543.9,0.3616]
[1755447636978,3.466,4544.2,4544.1,1.4291]
[1755447637765,0.2582,4544.2,4544.1,1.4291]
[1755447638364,0.0993,4544.1,4543.7,0.2472]
[1755447638552,0.2582,4543.8,4543.7,0.2472]
[1755447639162,0.2582,4543.8,4543.7,0.5047]
[1755447639361,0.2582,4543.8,4543.7,0.6732]
[1755447639557,0.2582,4543.8,4543.7,1.0675]
[1755447639764,0.2582,4543.8,4543.7,1.4291]
[1755447640555,3.2078,4544.2,4544.1,0.6191]
[1755447640756,3.2078,4544.2,4544.1,1.4291]
[1755447641358,3.466,4544.2,4544.1,0.5047]
[1755447642068,3.466,4544.2,4544.1,1.4291]
[1755447642264,3.466,4544.2,4543.3,0.8663]
[1755447642460,3.466,4544.2,4544.1,1.4291]
[1755447643063,3.466,4544.2,4544.1,1.0675]
[1755447643557,3.466,4544.2,4544.1,1.4291]
[1755447643769,3.466,4544.2,4544.1,1.0675]
[1755447644360,3.466,4544.2,4544.1,1.4291]
[1755447644669,3.466,4544.2,4543.2,3.2078]
[1755447644670,3.466,4544.2,4543.6,0.2472]
[1755447644870,0.0993,4544.1,4543.6,0.6732]
[1755447645166,0.2582,4543.7,4543.6,1.4291]
[1755447646567,0.2582,4544.1,4544.0,0.5628]
[1755447646767,0.2582,4544.1,4544.0,1.4291]
[1755447654672,3.2078,4544.2,4544.0,1.4291]
[1755447654876,3.2078,4544.2,4544.1,1.4744]
[1755447655070,3.368,4544.2,4544.1,1.4744]
[1755447655276,3.4681,4544.2,4544.1,1.4744]
[1755447655478,3.2078,4544.2,4544.1,1.4744]
[1755447657968,3.2078,4544.9,4544.1,1.4964]
[1755447658277,3.2078,4544.9,4544.8,1.0469]
[1755447658482,3.2078,4544.9,4544.8,1.4744]
[1755447659184,0.1001,4545.5,4544.8,0.5972]
[1755447659374,0.2603,4545.5,4545.4,1.4744]
[1755447660180,34.8998,4545.6,4545.4,0.8567]
[1755447660371,3.2078,4545.6,4545.5,1.4744]
[1755447660572,3.368,4545.6,4545.5,1.1013]
[1755447660771,3.4681,4545.6,4545.5,0.2446]
[1755447661374,3.4681,4545.6,4544.3,3.2078]
[1755447661375,0.2603,4545.0,4544.9,0.2446]
[1755447661775,3.2078,4545.1,4544.9,0.2446]
[1755447661978,3.3079,4545.1,4545.0,1.4744]
[1755447662272,3.2078,4545.1,4545.0,1.4744]
[1755447662478,3.4681,4545.1,4545.0,0.2446]
[1755447662675,3.2078,4545.1,4545.0,1.4744]
[1755447662881,3.4681,4545.1,4545.0,0.6759]
[1755447663179,3.4681,4545.1,4545.0,1.4744]
[1755447663667,3.2078,4545.1,4545.0,1.4744]
[1755447664078,3.3079,4545.1,4545.0,1.4744]
[1755447664872,3.2078,4545.1,4545.0,1.4744]
[1755447665072,0.1001,4545.5,4545.0,1.4744]
[1755447665280,0.2603,4545.4,4545.3,1.4744]
[1755447665476,0.2603,4545.4,4545.3,0.8439]
[1755447665781,0.2603,4545.4,4545.3,1.1013]
[1755447665983,0.2603,4545.4,4545.3,1.4744]
[1755447666881,24.5978,4545.6,4545.5,0.5972]
[1755447667073,24.6979,4545.6,4545.5,1.4744]
[1755447667275,24.8581,4545.6,4545.5,1.1013]
[1755447668082,3.2078,4545.6,4545.5,1.4744]
[1755447668481,3.4681,4545.6,4545.5,1.4744]
[1755447673175,3.2078,4545.6,4545.5,1.4744]
[1755447674574,3.4681,4545.6,4545.5,0.5041]
[1755447674875,3.4681,4545.6,4545.5,0.8439]
[1755447675084,3.4681,4545.6,4545.5,1.1013]
[1755447675389,3.4681,4545.6,4545.5,1.4744]
[1755447676488,3.2078,4545.6,4545.5,1.4744]
[1755447677876,3.3072,4545.6,4545.5,1.4744]
[1755447678284,3.4663,4545.6,4545.5,1.4744]
[1755447680283,3.2078,4545.6,4545.5,1.4744]
[1755447683487,2.5582,4545.6,4545.5,1.4963]
[1755447683682,3.2078,4546.1,4546.0,1.4547]
[1755447684290,21.5979,4546.7,4546.6,0.4092]
[1755447684490,22.1592,4546.7,4546.6,1.4547]
[1755447684989,22.94421662,4546.7,4546.6,0.8357]
[1755447685189,22.3995,4546.7,4546.6,0.8357]
[1755447685378,22.1592,4546.7,4546.6,1.4547]
[1755447685783,0.97210292,4546.7,4545.4,3.2078]
[1755447686082,0.3888,4546.5,4545.4,3.2078]
[1755447686285,0.3888,4546.5,4545.5,0.368]
[1755447686582,1.0565,4546.5,4546.4,0.8357]
[1755447686783,1.60123776,4546.5,4546.4,1.0867]
[1755447686978,0.54473776,4546.5,4546.4,1.4547]
[1755447687179,21.336,4546.6,4546.5,0.8795]
[1755447687379,21.88052393,4546.6,4546.5,1.4547]
[1755447688586,21.336,4546.6,4546.5,1.4547]
[1755447690186,21.5085,4546.6,4546.5,1.4547]
[1755447690391,22.1522,4546.6,4546.5,1.4547]
[1755447693590,3.2078,4546.8,4546.5,0.5752]
[1755447693791,24.5298,4546.8,4546.7,1.4547]
[1755447695093,3.2078,4546.8,4546.7,1.4547]
[1755447698293,4.024,4546.8,4546.7,1.4547]
[1755447698491,4.2643,4546.8,4546.7,1.4547]
[1755447699300,4.024,4546.8,4546.7,1.4547]
[1755447699799,4.2643,4546.8,4546.7,0.8357]
[1755447700097,4.2643,4546.8,4546.7,1.0867]
[1755447700492,0.6291,4546.7,4546.5,1.0377]
[1755447700692,21.7264,4546.6,4546.5,0.9432]
[1755447700895,22.1152,4546.6,4546.5,0.9432]
[1755447701094,22.1152,4546.6,4545.9,3.2078]
[1755447701095,22.1371,4546.6,4545.9,3.2078]
[1755447701289,0.8162,4546.0,4545.9,3.2078]
[1755447701493,22.3535,4546.0,4545.9,3.2078]
[1755447701696,0.6291,4545.9,4545.2,0.8301]
[1755447701996,0.8162,4545.3,4545.2,1.4547]
[1755447703595,1.0565,4545.3,4545.2,1.4547]
[1755447704300,0.8162,4545.3,4545.2,1.4547]
[1755447705597,0.4274,4545.3,4544.7,0.2566]
[1755447705793,1.0565,4545.2,4545.1,0.8357]
[1755447706300,1.0565,4545.2,4545.1,1.0867]
[1755447706694,1.0565,4545.2,4545.1,1.4547]
[1755447706896,0.8162,4545.2,4545.1,1.4547]
[1755447711102,3.2078,4545.4,4545.1,1.0867]
[1755447711313,1.0539,4545.0,4544.9,0.1722]
[1755447711596,1.0539,4545.0,4544.9,0.5856]
[1755447712002,1.0539,4545.0,4544.9,1.441]
[1755447712501,1.0539,4545.0,4544.9,1.0887]
[1755447712897,0.4187,4544.8,4544.7,0.5031]
[1755447713100,4.2617,4544.8,4544.7,0.5031]
[1755447713498,4.2617,4544.8,4544.7,0.25]
[1755447714100,4.2617,4544.8,4544.7,0.5031]
[1755447714300,4.2617,4544.8,4543.1,3.30685022]
[1755447714301,0.4187,4544.3,4544.2,0.5929]
[1755447714502,4.2617,4544.3,4544.2,0.8429]
[1755447715607,4.2617,4544.3,4544.2,1.441]
[1755447715904,4.0153,4544.3,4544.2,1.441]
[1755447720919,4.2617,4544.3,4544.2,1.441]
[1755447721218,4.2617,4544.3,4544.2,0.5031]
[1755447721414,0.6352,4544.2,4544.0,0.5031]
[1755447721618,0.4187,4544.1,4544.0,0.5031]
[1755447721820,1.0539,4544.1,4544.0,0.5031]
[1755447722121,1.0539,4544.1,4544.0,1.441]
[1755447722315,0.8075,4544.1,4544.0,1.0887]
[1755447722515,1.0539,4544.1,4544.0,0.8429]
[1755447723220,22.3099,4544.1,4544.0,0.8429]
[1755447724023,22.3099,4544.1,4544.0,0.6707]
[1755447725713,22.3099,4544.1,4543.3,0.6023]
[1755447725913,0.4187,4543.4,4543.3,0.5856]
[1755447726121,0.8075,4543.4,4543.3,0.5856]
[1755447726323,0.8075,4543.4,4543.3,0.8387]
[1755447726625,0.8075,4543.4,4543.3,1.441]
[1755447726826,21.6328,4543.7,4543.3,1.441]
[1755447727015,0.8075,4543.6,4543.5,0.5856]
[1755447727220,0.8075,4543.6,4543.5,1.441]
[1755447732230,0.1713,4543.2,4543.1,0.09905022]
[1755447732422,25.5167,4543.2,4543.1,0.09905022]
[1755447732624,25.69446603,4543.2,4543.1,0.09905022]
[1755447732819,28.69446603,4543.2,4543.1,0.09905022]
[1755447733032,0.6651,4542.4,4542.3,0.6707]
[1755447733232,25.4897,4542.4,4542.3,0.6707]
[1755447733528,25.4897,4542.4,4542.3,0.5031]
[1755447733924,25.4897,4542.4,4541.7,0.5031]
[1755447734128,4.2617,4541.8,4541.7,1.0887]
[1755447734328,25.4867,4541.8,4541.7,1.0887]
[1755447735523,25.4867,4541.8,4541.7,1.441]
[1755447735725,3.2078,4541.8,4541.7,1.441]
[1755447737327,3.6265,4541.8,4541.7,1.441]
[1755447737627,4.0153,4541.8,4541.7,1.441]
[1755447738134,4.2724,4541.8,4541.7,1.441]
[1755447738632,4.0153,4541.8,4541.7,1.441]
[1755447739221,4.2724,4541.8,4541.7,1.441]
[1755447739426,4.0153,4541.8,4541.7,1.441]
[1755447741231,3.2078,4541.8,4541.7,1.441]
[1755447741937,3.2078,4541.8,4541.7,1.4125]
[1755447742633,3.7384,4541.8,4541.7,1.4125]
[1755447743426,3.2078,4542.3,4541.7,0.5892]
[1755447743734,3.448,4543.3,4543.2,0.3291]
[1755447743936,3.448,4543.3,4542.3,0.4921]
[1755447744235,3.448,4543.3,4542.2,3.2078]
[1755447744236,1.4426,4543.2,4543.1,0.3291]
[1755447744430,25.8554,4543.2,4543.1,0.3291]
[1755447745333,24.9925,4543.2,4543.1,0.8212]
[1755447745532,3.2078,4543.7,4543.1,0.8212]
[1755447745730,24.651,4543.7,4543.6,0.5643]
[1755447745927,3.2078,4543.7,4543.6,0.8212]
[1755447746632,1.0394,4544.2,4544.1,0.8212]
[1755447746838,4.2472,4544.2,4544.1,0.8212]
[1755447747027,0.2402,4543.6,4543.5,0.2569]
[1755447747337,0.4088,4543.6,4543.5,0.586]
[1755447747633,0.4088,4543.6,4543.5,0.8212]
[1755447748134,1.4426,4543.6,4543.5,0.8212]
[1755447748532,0.8629,4544.1,4543.5,0.8212]
[1755447748729,3.6189,4543.7,4543.6,0.8212]
[1755447748935,4.6504,4543.7,4543.6,0.8212]
[1755447749130,3.6189,4543.7,4543.6,0.8212]
[1755447749330,21.191,4544.1,4544.0,0.586]
[1755447749537,0.3402,4544.2,4544.0,0.3291]
[1755447749840,1.5426,4544.2,4544.1,0.8212]
[1755447750035,0.6797,4544.2,4543.8,0.4921]
[1755447750234,1.1965,4543.6,4543.5,3.3758]
[1755447750437,1.4426,4543.6,4543.5,3.2078]
[1755447750829,0.9394,4543.6,4543.5,3.2078]
[1755447751029,1.4426,4543.6,4543.5,4.029]
[1755447751239,1.4426,4543.6,4543.5,3.5369]
[1755447751640,1.4426,4543.6,4543.2,0.4921]
[1755447751843,0.5797,4542.9,4542.8,0.8212]
[1755447752035,1.1965,4542.9,4542.8,0.8212]
[1755447752341,1.4426,4542.9,4542.8,0.8212]
[1755447753044,1.4426,4542.9,4542.8,0.168]
[1755447753239,0.5797,4542.8,4542.1,0.4921]
[1755447753440,1.4426,4542.2,4542.1,0.8212]
[1755447753643,0.9394,4542.2,4542.1,0.8212]
[1755447753835,1.4426,4542.2,4542.1,0.8212]
[1755447754142,4.6504,4542.2,4541.3,3.2078]
[1755447754337,0.5797,4541.5,4541.4,0.8212]
[1755447754637,24.3848,4542.2,4541.3,3.2078]
[1755447754638,0.7708,4542.1,4542.0,0.8212]
[1755447755037,1.4426,4542.1,4542.0,0.8212]
[1755447755447,21.7537,4542.5,4542.4,0.3291]
[1755447755637,21.7537,4542.5,4542.4,0.8212]
[1755447755638,22.1134,4542.5,4542.4,0.8212]
[1755447755839,22.6166,4542.5,4542.4,0.8212]
[1755447756044,22.6166,4542.5,4540.7,1.10056]
[1755447756045,0.5797,4541.0,4539.8,1.97343991]
[1755447756241,1.4426,4539.3,4538.8,1.97343991]
[1755447756438,0.9453,4539.0,4538.9,0.3291]
[1755447756742,0.6992,4539.0,4538.9,0.8212]
[1755447757239,0.9394,4539.0,4538.9,0.8212]
[1755447757940,1.13183194,4539.0,4538.9,0.8212]
[1755447758133,0.4111,4539.0,4538.9,0.8212]
[1755447758942,3.2078,4539.1,4539.0,0.8212]
[1755447759240,3.2078,4539.1,4539.0,3.8212]
[1755447759438,3.2078,4539.9,4539.1,0.4921]
[1755447759643,3.6481,4539.9,4539.8,0.8212]
[1755447760744,1.88291,4539.8,4539.7,0.8212]
[1755447761039,0.44036,4539.3,4539.2,0.8212]
[1755447761246,3.64816,4539.3,4539.2,0.8212]
[1755447762239,2.6881,4539.3,4539.2,3.8212]
[1755447762442,0.2461,4540.5,4539.2,3.8212]
[1755447762443,3.2078,4539.9,4539.2,3.3291]
[1755447762644,3.2078,4540.5,4539.4,3.64814]
[1755447763046,3.3787,4540.5,4539.2,0.44037]
[1755447763246,0.2571,4540.4,4539.2,0.44037]
[1755447763447,0.428,4540.4,4539.2,0.44037]
[1755447763746,0.8368,4540.4,4539.9,0.00427862]
[1755447763946,0.2571,4540.3,4539.9,0.00427862]
[1755447764143,0.1709,4540.4,4539.9,0.00427862]
[1755447764448,0.2461,4540.3,4539.9,0.00427862]
[1755447764638,0.2571,4540.1,4539.9,0.00427862]
[1755447764843,0.44029,4540.0,4539.9,0.00427862]
[1755447765043,0.69739,4540.0,4539.9,0.00427862]
[1755447766850,0.44029,4540.0,4539.9,0.00427862]
[1755447767144,0.69739,4540.0,4539.9,0.00427862]
[1755447767448,1.88289,4540.0,4539.9,0.00427862]
[1755447768047,1.88289,4540.0,4539.9,0.00747862]
[1755447768247,1.88289,4540.0,4539.9,0.00427862]
[1755447769850,5.09069,4540.0,4539.9,0.00427862]
[1755447771543,5.09069,4540.0,4539.9,0.00587862]
[1755447772951,5.09069,4540.0,4539.9,0.01977862]
[1755447773956,5.09069,4540.0,4539.9,0.02577862]
[1755447774155,4.73099,4540.0,4539.9,0.02577862]
[1755447774358,5.11849,4540.0,4539.9,0.02577862]
[1755447774856,4.73099,4540.0,4539.9,0.01977862]